[Event "28th Bosnjaci Open 2024"]
[Site "Bosnjaci"]
[Date "2024.01.04"]
[Round "2.4"]
[White "Kovacevic, Blazimir"]
[Black "Begic, Domagoj"]
[Result "1-0"]
[ECO "E12"]
[WhiteElo "2381"]
[BlackElo "2052"]
[Annotator "RC"]
[PlyCount "87"]
[EventDate "2024.01.02"]
[EventType "swiss"]
[EventCountry "CRO"]
[SourceTitle "playchess.com"]
[Source "ChessBase"]
[SourceQuality "1"]
[TimeControl "5400+30"]

1. d4 {[%emt 0:00:03]} Nf6 {[%emt 0:00:23]} 2. Nf3 {[%emt 0:00:07]} e6 {[%emt 0:00:27]} 3. c4 {[%emt 0:00:31]} b6 {[%emt 0:00:32]} 4. Bf4 {[%emt 0:01:11]} Bb7 {[%emt 0:01:28]} 5. e3 {[%emt 0:00:46]} Bb4+ {[%emt 0:12:49]} 6. Nfd2 {[%emt 0:01:09]} O-O {[%emt 0:02:12]} 7. a3 {[%emt 0:00:15]} Be7 {[%emt 0:00:27]} 8. Nc3 {[%emt 0:01:20]} d6 {[%emt 0:01:14]} 9. e4 {[%emt 0:08:57]} e5 {[%emt 0:12:45]} 10. Be3 {[%emt 0:05:50]} exd4 {[%emt 0:00:22]} 11. Bxd4 {[%emt 0:00:03]} Nc6 {[%emt 0:00:12]} 12. Be3 {[%emt 0:00:05]} Re8 {[%emt 0:00:34]} 13. Be2 {[%emt 0:00:44]} Ne5 {[%emt 0:03:58]} 14. O-O {[%emt 0:01:08]} c6 {[%emt 0:21:44]} 15. Nf3 {[%emt 0:14:56]} Qc7 {[%emt 0:01:57]} 16. Qc2 {[%emt 0:04:00]} Rad8 {[%emt 0:00:22]} 17. Rad1 {[%emt 0:02:14]} Ng6 {[%emt 0:03:54]} 18. Nd4 {[%emt 0:03:59]} h6 {[%emt 0:10:07]} 19. Nf5 {[%emt 0:06:53]} Bf8 {[%emt 0:00:21]} 20. Bd4 {[%emt 0:00:08]} Ne5 {[%emt 0:05:20]} 21. f4 {[%emt 0:03:22]} Ned7 {[%emt 0:00:19]} 22. Bf3 {[%emt 0:01:49]} g6 {[%emt 0:01:06]} 23. Ng3 {[%emt 0:01:50]} Bg7 {[%emt 0:00:10]} 24. Kh1 {[%emt 0:02:20]} a6 {[%emt 0:01:56]} 25. b4 {[%emt 0:04:34]} c5 {[%emt 0:02:02]} 26. Nd5 {[%emt 0:09:06]} Qb8 {[%emt 0:10:40]} 27. Nxf6+ {[%emt 0:06:07]} Nxf6 {[%emt 0:00:27]} 28. bxc5 {[%emt 0:00:45]} dxc5 {[%emt 0:03:04]} 29. Be5 {[%emt 0:00:28]} Qc8 {[%emt 0:00:05]} 30. Qb2 {[%emt 0:04:55]} Rxd1 {[%emt 0:00:29]} 31. Rxd1 {[%emt 0:00:06]} Rxe5 {[%emt 0:00:12]} 32. fxe5 {[%emt 0:00:43]} Ne8 {[%emt 0:03:33]} 33. Qxb6 {[%emt 0:03:16]} Bc6 {[%emt 0:00:18]} 34. Qxc5 {[%emt 0:03:57]} Bf8 {[%emt 0:00:15]} 35. Qa5 {[%emt 0:01:04]} h5 {[%emt 0:00:11]} 36. Nf1 {[%emt 0:00:55]} Nc7 {[%emt 0:00:14]} 37. Ne3 {[%emt 0:01:06]} Ne6 {[%emt 0:00:09]} 38. Nd5 {[%emt 0:00:19]} Kg7 {[%emt 0:00:23]} 39. g3 {[%emt 0:01:18]} Ng5 {[%emt 0:01:40]} 40. Bg2 {[%emt 0:00:22]} Qg4 {[%emt 0:00:33]} 41. Re1 {[%emt 0:03:43]} h4 {[%emt 0:01:08]} 42. Nf6 {[%emt 0:00:55]} Qc8 {[%emt 0:00:36]} 43. gxh4 {[%emt 0:00:09]} Nh3 {[%emt 0:00:35]} 44. Rf1 {[%emt 0:00:29]} 1-0

[Event "28th Bosnjaci Open 2024"]
[Site "Bosnjaci"]
[Date "2024.01.04"]
[Round "2.5"]
[White "Konjevic, Nikola"]
[Black "Jocev, Milan"]
[Result "1/2-1/2"]
[ECO "C77"]
[WhiteElo "2035"]
[BlackElo "2376"]
[Annotator "RC"]
[PlyCount "75"]
[EventDate "2024.01.02"]
[EventType "swiss"]
[EventCountry "CRO"]
[SourceTitle "playchess.com"]
[Source "ChessBase"]
[SourceQuality "1"]
[TimeControl "5400+30"]

1. e4 {[%emt 0:00:05]} e5 {[%emt 0:00:07]} 2. Nf3 {[%emt 0:00:12]} Nc6 {[%emt 0:00:09]} 3. Bb5 {[%emt 0:00:11]} a6 {[%emt 0:00:14]} 4. Ba4 {[%emt 0:00:09]} Nf6 {[%emt 0:00:12]} 5. O-O {[%emt 0:00:20]} Be7 {[%emt 0:00:25]} 6. d3 {[%emt 0:00:12]} b5 {[%emt 0:00:17]} 7. Bb3 {[%emt 0:00:02]} O-O {[%emt 0:00:13]} 8. Nc3 {[%emt 0:00:15]} d6 {[%emt 0:00:49]} 9. a3 {[%emt 0:00:19]} Na5 {[%emt 0:03:10]} 10. Ba2 {[%emt 0:00:29]} c5 {[%emt 0:00:09]} 11. b4 {[%emt 0:00:31]} cxb4 {[%emt 0:02:28]} 12. axb4 {[%emt 0:00:06]} Nc6 {[%emt 0:00:05]} 13. Nd5 {[%emt 0:00:15]} Be6 {[%emt 0:04:43]} 14. c3 {[%emt 0:04:58]} a5 {[%emt 0:02:39]} 15. Nxf6+ {[%emt 0:14:52]} Bxf6 {[%emt 0:00:07]} 16. Bxe6 {[%emt 0:00:25]} fxe6 {[%emt 0:00:04]} 17. bxa5 {[%emt 0:06:52]} Rxa5 {[%emt 0:02:20]} 18. Bd2 {[%emt 0:11:08]} Qa8 {[%emt 0:09:52]} 19. Rxa5 {[%emt 0:02:41]} Qxa5 {[%emt 0:00:06]} 20. Qb3 {[%emt 0:01:54]} Kf7 {[%emt 0:00:14]} 21. Rb1 {[%emt 0:09:21]} Rb8 {[%emt 0:00:51]} 22. Ne1 {[%emt 0:06:24]} Be7 {[%emt 0:06:42]} 23. Nc2 {[%emt 0:02:12]} Ra8 {[%emt 0:00:14]} 24. g3 {[%emt 0:06:13]} Qa2 {[%emt 0:05:42]} 25. Be3 {[%emt 0:01:01]} d5 {[%emt 0:02:10]} 26. exd5 {[%emt 0:08:53]} exd5 {[%emt 0:00:34]} 27. Bb6 {[%emt 0:00:36]} Qxb3 {[%emt 0:06:21]} 28. Rxb3 {[%emt 0:00:06]} Rb8 {[%emt 0:00:21]} 29. Be3 {[%emt 0:01:36]} Ke6 {[%emt 0:05:24]} 30. f4 {[%emt 0:02:55]} exf4 {[%emt 0:04:59]} 31. Bxf4 {[%emt 0:01:51]} Bd6 {[%emt 0:00:24]} 32. Bxd6 {[%emt 0:02:48]} Kxd6 {[%emt 0:00:04]} 33. Na3 {[%emt 0:01:06]} b4 {[%emt 0:01:36]} 34. cxb4 {[%emt 0:00:48]} Rxb4 {[%emt 0:00:25]} 35. Rxb4 {[%emt 0:16:14]} Nxb4 {[%emt 0:00:05]} 36. d4 {[%emt 0:00:00]} Ke6 {[%emt 0:00:57]} 37. Kf2 {[%emt 0:00:00]} Kf5 {[%emt 0:02:35]} 38. Kf3 {[%emt 0:00:00]} 1/2-1/2

[Event "28th Bosnjaci Open 2024"]
[Site "Bosnjaci"]
[Date "2024.01.04"]
[Round "2.6"]
[White "Tomas, Ante"]
[Black "Culum, Sanjin"]
[Result "1/2-1/2"]
[ECO "B51"]
[WhiteElo "2014"]
[BlackElo "2349"]
[Annotator "RC"]
[PlyCount "152"]
[EventDate "2024.01.02"]
[EventType "swiss"]
[EventCountry "CRO"]
[SourceTitle "playchess.com"]
[Source "ChessBase"]
[SourceQuality "1"]
[TimeControl "5400+30"]

1. e4 {[%emt 0:02:07]} c5 {[%emt 0:00:39]} 2. Nf3 {[%emt 0:00:10]} d6 {[%emt 0:00:23]} 3. Bb5+ {[%emt 0:01:44]} Nd7 {[%emt 0:00:18]} 4. d4 {[%emt 0:01:36]} cxd4 {[%emt 0:00:30]} 5. Qxd4 {[%emt 0:00:27]} a6 {[%emt 0:00:54]} 6. Bc4 {[%emt 0:16:08]} Ngf6 {[%emt 0:02:39]} 7. O-O {[%emt 0:02:13]} e6 {[%emt 0:04:45]} 8. a4 {[%emt 0:09:01]} Be7 {[%emt 0:02:15]} 9. Bg5 {[%emt 0:03:53]} O-O {[%emt 0:02:04]} 10. Nc3 {[%emt 0:00:54]} Qc7 {[%emt 0:02:11]} 11. a5 {[%emt 0:07:16]} Ne5 {[%emt 0:09:22]} 12. Be2 {[%emt 0:04:39]} Nc6 {[%emt 0:08:26]} 13. Qb6 {[%emt 0:09:23]} Bd8 {[%emt 0:03:57]} 14. Rfd1 {[%emt 0:06:59]} Qxb6 {[%emt 0:30:40]} 15. axb6 {[%emt 0:00:03]} Bxb6 {[%emt 0:00:05]} 16. Rxd6 {[%emt 0:02:51]} Bc7 {[%emt 0:01:44]} 17. Rd2 {[%emt 0:04:55]} Rb8 {[%emt 0:01:10]} 18. Nd4 {[%emt 0:03:17]} Nxd4 {[%emt 0:00:52]} 19. Rxd4 {[%emt 0:00:03]} b5 {[%emt 0:02:35]} 20. Bf3 {[%emt 0:12:17]} Be5 {[%emt 0:01:39]} 21. Rd3 {[%emt 0:01:58]} Bb7 {[%emt 0:00:11]} 22. Be3 {[%emt 0:04:44]} Rbc8 {[%emt 0:01:41]} 23. Bd4 {[%emt 0:00:11]} Nd7 {[%emt 0:02:38]} 24. Rc1 {[%emt 0:02:21]} Bf4 {[%emt 0:03:23]} 25. Be3 {[%emt 0:01:16]} Bxe3 {[%emt 0:00:05]} 26. Rxe3 {[%emt 0:00:08]} Ne5 {[%emt 0:00:04]} 27. Be2 {[%emt 0:00:30]} Rfd8 {[%emt 0:00:22]} 28. f4 {[%emt 0:01:39]} Nc4 {[%emt 0:04:23]} 29. Bxc4 {[%emt 0:00:01]} Rxc4 {[%emt 0:00:06]} 30. Rd3 {[%emt 0:00:04]} Rdc8 {[%emt 0:00:12]} 31. Rcd1 {[%emt 0:02:14]} g6 {[%emt 0:00:12]} 32. Rd8+ {[%emt 0:00:31]} Rxd8 {[%emt 0:00:03]} 33. Rxd8+ {[%emt 0:00:06]} Kg7 {[%emt 0:00:03]} 34. Rd7 {[%emt 0:01:19]} Bxe4 {[%emt 0:01:25]} 35. Nxe4 {[%emt 0:00:15]} Rxe4 {[%emt 0:00:03]} 36. Rd6 {[%emt 0:00:46]} Re2 {[%emt 0:02:07]} 37. c3 {[%emt 0:00:19]} a5 {[%emt 0:00:09]} 38. Ra6 {[%emt 0:00:24]} a4 {[%emt 0:00:04]} 39. c4 {[%emt 0:00:04]} bxc4 {[%emt 0:03:05]} 40. Rxa4 {[%emt 0:00:01]} Rc2 {[%emt 0:00:10]} 41. Rb4 {[%emt 0:00:43]} Kf6 {[%emt 0:00:34]} 42. Rb5 {[%emt 0:00:04]} h5 {[%emt 0:01:44]} 43. h4 {[%emt 0:00:30]} Rd2 {[%emt 0:01:54]} 44. Kh2 {[%emt 0:00:36]} Rd4 {[%emt 0:02:14]} 45. Kg3 {[%emt 0:00:19]} Rd3+ {[%emt 0:00:33]} 46. Kh2 {[%emt 0:00:19]} Ke7 {[%emt 0:02:36]} 47. Rc5 {[%emt 0:01:43]} Rd4 {[%emt 0:06:51]} 48. Rc7+ {[%emt 0:00:24]} Kf6 {[%emt 0:00:00]} 49. Kg3 {[%emt 0:00:09]} Rd3+ {[%emt 0:00:00]} 50. Kh2 {[%emt 0:00:47]} Rb3 {[%emt 0:00:00]} 51. Rxc4 {[%emt 0:00:06]} Kf5 {[%emt 0:00:00]} 52. g3 {[%emt 0:01:19]} Rxb2+ {[%emt 0:00:00]} 53. Kh3 {[%emt 0:00:05]} f6 {[%emt 0:00:00]} 54. Rc8 {[%emt 0:01:03]} e5 {[%emt 0:00:23]} 55. fxe5 {[%emt 0:00:30]} fxe5 {[%emt 0:00:06]} 56. Rf8+ {[%emt 0:00:14]} Ke6 {[%emt 0:00:05]} 57. Re8+ {[%emt 0:00:19]} Kf6 {[%emt 0:01:02]} 58. Rf8+ {[%emt 0:00:07]} Ke7 {[%emt 0:00:13]} 59. Rg8 {[%emt 0:00:08]} Kf7 {[%emt 0:00:03]} 60. Ra8 {[%emt 0:00:50]} Rb6 {[%emt 0:02:10]} 61. Kg2 {[%emt 0:01:18]} Ke6 {[%emt 0:00:08]} 62. Kf3 {[%emt 0:00:33]} Rb3+ {[%emt 0:00:05]} 63. Kf2 {[%emt 0:00:35]} Kf5 {[%emt 0:00:56]} 64. Ra4 {[%emt 0:00:29]} Rc3 {[%emt 0:01:03]} 65. Rb4 {[%emt 0:00:16]} Rd3 {[%emt 0:00:43]} 66. Ra4 {[%emt 0:00:28]} Rd4 {[%emt 0:00:33]} 67. Ra6 {[%emt 0:00:20]} Rb4 {[%emt 0:00:09]} 68. Rc6 {[%emt 0:00:34]} Ke4 {[%emt 0:00:42]} 69. Rxg6 {[%emt 0:00:27]} Rb2+ {[%emt 0:00:04]} 70. Kg1 {[%emt 0:00:51]} Kf3 {[%emt 0:00:17]} 71. Rg5 {[%emt 0:00:26]} e4 {[%emt 0:00:12]} 72. Rxh5 {[%emt 0:00:21]} e3 {[%emt 0:00:29]} 73. Rf5+ {[%emt 0:00:24]} Kxg3 {[%emt 0:00:08]} 74. Kf1 {[%emt 0:00:38]} Kg4 {[%emt 0:00:49]} 75. Rf8 {[%emt 0:00:14]} Kxh4 {[%emt 0:00:04]} 76. Re8 {[%emt 0:00:40]} e2+ {[%emt 0:00:48]} 1/2-1/2

[Event "28th Bosnjaci Open 2024"]
[Site "Bosnjaci"]
[Date "2024.01.04"]
[Round "2.7"]
[White "Muratovic, Efim"]
[Black "Sekelja, Marko"]
[Result "1-0"]
[ECO "A15"]
[WhiteElo "2345"]
[BlackElo "2036"]
[Annotator "RC"]
[PlyCount "127"]
[EventDate "2024.01.02"]
[EventType "swiss"]
[EventCountry "CRO"]
[SourceTitle "playchess.com"]
[Source "ChessBase"]
[SourceQuality "1"]
[TimeControl "5400+30"]

1. g3 {[%emt 0:00:47]} Nf6 {[%emt 0:01:03]} 2. Bg2 {[%emt 0:00:07]} g6 {[%emt 0:00:02]} 3. c4 {[%emt 0:00:11]} c6 {[%emt 0:01:29]} 4. e4 {[%emt 0:02:57]} e5 {[%emt 0:10:31]} 5. d4 {[%emt 0:02:46]} exd4 {[%emt 0:24:40]} 6. Qxd4 {[%emt 0:00:54]} d6 {[%emt 0:12:20]} 7. Nc3 {[%emt 0:05:43]} Bg7 {[%emt 0:06:55]} 8. Bg5 {[%emt 0:16:57]} O-O {[%emt 0:09:05]} 9. Nge2 {[%emt 0:04:45]} Be6 {[%emt 0:03:54]} 10. Qd3 {[%emt 0:28:40]} Na6 {[%emt 0:04:27]} 11. Rd1 {[%emt 0:05:49]} Qa5 {[%emt 0:05:34]} 12. Bxf6 {[%emt 0:07:10]} Bxf6 {[%emt 0:00:26]} 13. O-O {[%emt 0:01:28]} Rad8 {[%emt 0:03:02]} 14. b3 {[%emt 0:03:05]} Nc5 {[%emt 0:00:33]} 15. Qe3 {[%emt 0:01:40]} Bg7 {[%emt 0:01:24]} 16. Rd2 {[%emt 0:00:47]} Qc7 {[%emt 0:02:07]} 17. h3 {[%emt 0:00:55]} a5 {[%emt 0:00:09]} 18. Rfd1 {[%emt 0:00:37]} Rfe8 {[%emt 0:00:26]} 19. f4 {[%emt 0:01:17]} Bc8 {[%emt 0:01:46]} 20. Qf2 {[%emt 0:00:54]} b6 {[%emt 0:02:28]} 21. Nd4 {[%emt 0:01:22]} Ne6 {[%emt 0:03:56]} 22. Nxe6 {[%emt 0:02:48]} fxe6 {[%emt 0:00:31]} 23. Na4 {[%emt 0:01:57]} c5 {[%emt 0:00:43]} 24. Qf3 {[%emt 0:00:27]} Bd4+ {[%emt 0:00:31]} 25. Kh2 {[%emt 0:00:12]} Bd7 {[%emt 0:00:41]} 26. Nc3 {[%emt 0:00:06]} Bc6 {[%emt 0:00:37]} 27. Ne2 {[%emt 0:00:19]} e5 {[%emt 0:00:44]} 28. Qg4 {[%emt 0:01:18]} Qg7 {[%emt 0:00:48]} 29. Rf1 {[%emt 0:03:21]} Rf8 {[%emt 0:01:08]} 30. Rd3 {[%emt 0:00:42]} Bd7 {[%emt 0:00:31]} 31. Qh4 {[%emt 0:01:12]} Qf6 {[%emt 0:00:44]} 32. Qxf6 {[%emt 0:00:11]} Rxf6 {[%emt 0:00:09]} 33. g4 {[%emt 0:00:36]} Bc6 {[%emt 0:01:21]} 34. f5 {[%emt 0:01:26]} gxf5 {[%emt 0:00:45]} 35. exf5 {[%emt 0:00:14]} Bxg2 {[%emt 0:00:59]} 36. Kxg2 {[%emt 0:00:07]} d5 {[%emt 0:00:24]} 37. cxd5 {[%emt 0:00:15]} e4 {[%emt 0:01:14]} 38. Rdd1 {[%emt 0:00:08]} Rxd5 {[%emt 0:00:31]} 39. Rf4 {[%emt 0:00:06]} Re5 {[%emt 0:00:47]} 40. Nxd4 {[%emt 0:00:16]} cxd4 {[%emt 0:00:06]} 41. Rxd4 {[%emt 0:00:14]} Rc6 {[%emt 0:00:35]} 42. Rfxe4 {[%emt 0:00:19]} Rxe4 {[%emt 0:00:25]} 43. Rxe4 {[%emt 0:00:07]} Rc2+ {[%emt 0:00:03]} 44. Kg3 {[%emt 0:00:07]} Rxa2 {[%emt 0:00:07]} 45. Re8+ {[%emt 0:02:13]} Kf7 {[%emt 0:00:16]} 46. Rb8 {[%emt 0:00:35]} Ra3 {[%emt 0:00:13]} 47. Rb7+ {[%emt 0:00:25]} Kg8 {[%emt 0:00:26]} 48. Rxb6 {[%emt 0:00:24]} a4 {[%emt 0:00:13]} 49. Kh4 {[%emt 0:00:13]} Rxb3 {[%emt 0:00:34]} 50. Ra6 {[%emt 0:00:16]} a3 {[%emt 0:00:36]} 51. Ra8+ {[%emt 0:00:36]} Kg7 {[%emt 0:00:34]} 52. Ra7+ {[%emt 0:00:07]} Kg8 {[%emt 0:00:24]} 53. g5 {[%emt 0:00:46]} Rc3 {[%emt 0:02:10]} 54. Kg4 {[%emt 0:00:26]} Rc4+ {[%emt 0:00:14]} 55. Kh5 {[%emt 0:00:11]} Rc5 {[%emt 0:00:48]} 56. f6 {[%emt 0:00:15]} Rc3 {[%emt 0:00:25]} 57. h4 {[%emt 0:00:10]} Rb3 {[%emt 0:00:07]} 58. Ra4 {[%emt 0:01:14]} Rc3 {[%emt 0:01:17]} 59. Kh6 {[%emt 0:00:32]} Rh3 {[%emt 0:00:31]} 60. h5 {[%emt 0:00:11]} Kf7 {[%emt 0:00:21]} 61. Ra7+ {[%emt 0:00:10]} Ke6 {[%emt 0:00:19]} 62. Rxh7 {[%emt 0:00:53]} a2 {[%emt 0:00:17]} 63. Ra7 {[%emt 0:00:02]} Rh2 {[%emt 0:00:22]} 64. Kg6 {[%emt 0:00:13]} 1-0

[Event "28th Bosnjaci Open 2024"]
[Site "Bosnjaci"]
[Date "2024.01.04"]
[Round "2.8"]
[White "Ivancic, Ivan"]
[Black "Plenkovic, Zdenko"]
[Result "0-1"]
[ECO "B01"]
[WhiteElo "2001"]
[BlackElo "2335"]
[Annotator "RC"]
[PlyCount "126"]
[EventDate "2024.01.02"]
[EventType "swiss"]
[EventCountry "CRO"]
[SourceTitle "playchess.com"]
[Source "ChessBase"]
[SourceQuality "1"]
[TimeControl "5400+30"]

1. e4 {[%emt 0:00:03]} d5 {[%emt 0:00:28]} 2. exd5 {[%emt 0:00:08]} Qxd5 {[%emt 0:00:04]} 3. Nc3 {[%emt 0:00:14]} Qd8 {[%emt 0:00:36]} 4. d4 {[%emt 0:00:18]} Nf6 {[%emt 0:00:06]} 5. Nf3 {[%emt 0:00:27]} e6 {[%emt 0:00:31]} 6. Ne5 {[%emt 0:04:19]} a6 {[%emt 0:04:44]} 7. g3 {[%emt 0:04:59]} c5 {[%emt 0:12:30]} 8. dxc5 {[%emt 0:21:59]} Qxd1+ {[%emt 0:02:46]} 9. Nxd1 {[%emt 0:00:08]} Bxc5 {[%emt 0:00:55]} 10. Be3 {[%emt 0:00:20]} Nbd7 {[%emt 0:06:29]} 11. Nxd7 {[%emt 0:02:46]} Nxd7 {[%emt 0:00:18]} 12. Bg2 {[%emt 0:00:17]} Ra7 {[%emt 0:02:09]} 13. Bxc5 {[%emt 0:06:08]} Nxc5 {[%emt 0:00:55]} 14. Nc3 {[%emt 0:00:22]} b6 {[%emt 0:05:13]} 15. Ne4 {[%emt 0:00:43]} Rc7 {[%emt 0:05:17]} 16. O-O-O {[%emt 0:02:13]} Nxe4 {[%emt 0:00:51]} 17. Bxe4 {[%emt 0:00:09]} Ke7 {[%emt 0:00:02]} 18. Rd2 {[%emt 0:00:56]} Bd7 {[%emt 0:02:27]} 19. Rhd1 {[%emt 0:00:41]} Rhc8 {[%emt 0:00:50]} 20. Kb1 {[%emt 0:04:37]} Be8 {[%emt 0:04:13]} 21. c3 {[%emt 0:07:13]} a5 {[%emt 0:02:49]} 22. Rd6 {[%emt 0:02:03]} Rd7 {[%emt 0:01:03]} 23. Rxd7+ {[%emt 0:00:09]} Bxd7 {[%emt 0:00:04]} 24. Kc2 {[%emt 0:02:14]} g5 {[%emt 0:05:21]} 25. Re1 {[%emt 0:13:06]} h6 {[%emt 0:07:00]} 26. b3 {[%emt 0:02:07]} Rc5 {[%emt 0:01:00]} 27. c4 {[%emt 0:00:59]} b5 {[%emt 0:02:05]} 28. Kc3 {[%emt 0:03:01]} bxc4 {[%emt 0:04:52]} 29. bxc4 {[%emt 0:00:22]} Bb5 {[%emt 0:02:59]} 30. Bd3 {[%emt 0:00:39]} Bc6 {[%emt 0:00:04]} 31. Kd4 {[%emt 0:06:31]} Kd6 {[%emt 0:00:14]} 32. Be4 {[%emt 0:04:43]} Bxe4 {[%emt 0:07:43]} 33. Rxe4 {[%emt 0:00:07]} Rf5 {[%emt 0:00:25]} 34. f4 {[%emt 0:06:04]} gxf4 {[%emt 0:00:45]} 35. gxf4 {[%emt 0:02:38]} Kc6 {[%emt 0:02:53]} 36. h3 {[%emt 0:02:56]} Kd6 {[%emt 0:01:59]} 37. a4 {[%emt 0:00:39]} Kc6 {[%emt 0:00:33]} 38. Kd3 {[%emt 0:01:20]} Rh5 {[%emt 0:01:58]} 39. Re3 {[%emt 0:00:41]} Rh4 {[%emt 0:00:24]} 40. Rf3 {[%emt 0:00:32]} Kc5 {[%emt 0:00:10]} 41. Kc3 {[%emt 0:00:18]} f6 {[%emt 0:01:48]} 42. Kd3 {[%emt 0:00:46]} e5 {[%emt 0:02:30]} 43. fxe5 {[%emt 0:00:28]} fxe5 {[%emt 0:00:06]} 44. Re3 {[%emt 0:00:35]} Rd4+ {[%emt 0:00:11]} 45. Ke2 {[%emt 0:00:29]} e4 {[%emt 0:00:06]} 46. Rb3 {[%emt 0:00:26]} Rxc4 {[%emt 0:00:09]} 47. Rb5+ {[%emt 0:00:07]} Kd4 {[%emt 0:00:05]} 48. Rxa5 {[%emt 0:00:20]} Rc2+ {[%emt 0:00:33]} 49. Kd1 {[%emt 0:00:03]} Ra2 {[%emt 0:02:50]} 50. Rh5 {[%emt 0:00:52]} Kd3 {[%emt 0:00:21]} 51. Rd5+ {[%emt 0:00:07]} Ke3 {[%emt 0:00:12]} 52. Rh5 {[%emt 0:01:19]} Ra1+ {[%emt 0:01:28]} 53. Kc2 {[%emt 0:00:05]} Rxa4 {[%emt 0:00:04]} 54. Rxh6 {[%emt 0:00:12]} Ke2 {[%emt 0:00:17]} 55. Rh8 {[%emt 0:01:29]} e3 {[%emt 0:00:54]} 56. h4 {[%emt 0:00:18]} Rc4+ {[%emt 0:00:05]} 57. Kb1 {[%emt 0:00:22]} Rf4 {[%emt 0:00:19]} 58. Kc2 {[%emt 0:00:27]} Kf2 {[%emt 0:00:37]} 59. Re8 {[%emt 0:00:54]} e2 {[%emt 0:00:06]} 60. Kd2 {[%emt 0:00:10]} Rd4+ {[%emt 0:00:05]} 61. Kc3 {[%emt 0:00:09]} Rd1 {[%emt 0:00:08]} 62. Rf8+ {[%emt 0:00:15]} Kg3 {[%emt 0:00:14]} 63. Rg8+ {[%emt 0:00:11]} Kh3 {[%emt 0:00:13]} 0-1

[Event "28th Bosnjaci Open 2024"]
[Site "Bosnjaci"]
[Date "2024.01.04"]
[Round "2.9"]
[White "Biti, Ozren"]
[Black "Petricevic, Mateo"]
[Result "1/2-1/2"]
[ECO "C00"]
[WhiteElo "2308"]
[BlackElo "2019"]
[Annotator "RC"]
[PlyCount "64"]
[EventDate "2024.01.02"]
[EventType "swiss"]
[EventCountry "CRO"]
[SourceTitle "playchess.com"]
[Source "ChessBase"]
[SourceQuality "1"]
[TimeControl "5400+30"]

1. e4 {[%emt 0:00:03]} e6 {[%emt 0:03:59]} 2. d3 {[%emt 0:00:05]} d5 {[%emt 0:02:03]} 3. Qe2 {[%emt 0:00:51]} Nf6 {[%emt 0:00:23]} 4. Nf3 {[%emt 0:00:10]} Be7 {[%emt 0:00:58]} 5. g3 {[%emt 0:00:08]} c5 {[%emt 0:00:31]} 6. Bg2 {[%emt 0:00:06]} Nc6 {[%emt 0:00:56]} 7. O-O {[%emt 0:00:18]} b5 {[%emt 0:05:56]} 8. e5 {[%emt 0:08:34]} Nd7 {[%emt 0:00:25]} 9. h4 {[%emt 0:04:10]} Bb7 {[%emt 0:05:23]} 10. Re1 {[%emt 0:03:03]} Qb6 {[%emt 0:03:37]} 11. c3 {[%emt 0:13:27]} a5 {[%emt 0:15:33]} 12. a4 {[%emt 0:04:07]} Ba6 {[%emt 0:08:28]} 13. axb5 {[%emt 0:08:26]} Qxb5 {[%emt 0:00:13]} 14. c4 {[%emt 0:08:00]} dxc4 {[%emt 0:03:24]} 15. Na3 {[%emt 0:01:03]} Qb6 {[%emt 0:04:06]} 16. Nxc4 {[%emt 0:03:57]} Bxc4 {[%emt 0:00:18]} 17. dxc4 {[%emt 0:00:05]} Rb8 {[%emt 0:00:24]} 18. Qe4 {[%emt 0:06:37]} Nd4 {[%emt 0:08:38]} 19. Nxd4 {[%emt 0:07:47]} cxd4 {[%emt 0:00:01]} 20. Qc6 {[%emt 0:00:51]} Bc5 {[%emt 0:06:07]} 21. Bd2 {[%emt 0:05:25]} Qxc6 {[%emt 0:03:49]} 22. Bxc6 {[%emt 0:00:31]} Rxb2 {[%emt 0:00:12]} 23. Rxa5 {[%emt 0:03:28]} Rxd2 {[%emt 0:00:07]} 24. Rxc5 {[%emt 0:01:30]} Ke7 {[%emt 0:01:41]} 25. Bxd7 {[%emt 0:07:01]} Kxd7 {[%emt 0:00:02]} 26. Ra1 {[%emt 0:01:48]} Rc8 {[%emt 0:00:01]} 27. Ra7+ {[%emt 0:00:48]} Kd8 {[%emt 0:00:01]} 28. Rxc8+ {[%emt 0:01:55]} Kxc8 {[%emt 0:00:01]} 29. Rxf7 {[%emt 0:03:10]} Rd1+ {[%emt 0:00:17]} 30. Kg2 {[%emt 0:00:07]} d3 {[%emt 0:00:47]} 31. Rf4 {[%emt 0:01:58]} Kc7 {[%emt 0:07:13]} 32. Kf3 {[%emt 0:04:18]} Kc6 {[%emt 0:00:19]} 1/2-1/2

[Event "28th Bosnjaci Open 2024"]
[Site "Bosnjaci"]
[Date "2024.01.04"]
[Round "2.10"]
[White "Drmic, Bozo"]
[Black "Hadzovic, Amir"]
[Result "0-1"]
[ECO "C22"]
[WhiteElo "2000"]
[BlackElo "2307"]
[Annotator "RC"]
[PlyCount "56"]
[EventDate "2024.01.02"]
[EventType "swiss"]
[EventCountry "CRO"]
[SourceTitle "playchess.com"]
[Source "ChessBase"]
[SourceQuality "1"]
[TimeControl "5400+30"]

1. e4 {[%emt 0:00:02]} e5 {[%emt 0:00:15]} 2. d4 {[%emt 0:00:26]} exd4 {[%emt 0:00:28]} 3. Qxd4 {[%emt 0:00:06]} Nc6 {[%emt 0:00:09]} 4. Qd3 {[%emt 0:00:06]} Nf6 {[%emt 0:00:44]} 5. Nc3 {[%emt 0:00:25]} Bc5 {[%emt 0:03:58]} 6. Bf4 {[%emt 0:00:45]} O-O {[%emt 0:00:53]} 7. O-O-O {[%emt 0:01:42]} Ng4 {[%emt 0:04:57]} 8. Nh3 {[%emt 0:00:51]} d6 {[%emt 0:03:02]} 9. f3 {[%emt 0:02:32]} Nge5 {[%emt 0:00:15]} 10. Bxe5 {[%emt 0:04:43]} Nxe5 {[%emt 0:00:20]} 11. Qe2 {[%emt 0:00:46]} Bxh3 {[%emt 0:04:09]} 12. gxh3 {[%emt 0:00:16]} Qh4 {[%emt 0:02:15]} 13. Bg2 {[%emt 0:03:41]} Ng6 {[%emt 0:02:17]} 14. Qe1 {[%emt 0:04:28]} Qg5+ {[%emt 0:00:26]} 15. Rd2 {[%emt 0:02:27]} Be3 {[%emt 0:00:17]} 16. Nd5 {[%emt 0:01:34]} Bxd2+ {[%emt 0:00:17]} 17. Qxd2 {[%emt 0:00:08]} Qxd2+ {[%emt 0:00:19]} 18. Kxd2 {[%emt 0:00:01]} c6 {[%emt 0:00:21]} 19. Ne3 {[%emt 0:00:13]} Nf4 {[%emt 0:00:29]} 20. Bf1 {[%emt 0:00:54]} Rad8 {[%emt 0:00:23]} 21. c4 {[%emt 0:00:20]} d5 {[%emt 0:00:20]} 22. cxd5 {[%emt 0:00:22]} cxd5 {[%emt 0:00:12]} 23. e5 {[%emt 0:03:54]} Rfe8 {[%emt 0:00:31]} 24. Ng4 {[%emt 0:00:41]} h5 {[%emt 0:00:51]} 25. Ke3 {[%emt 0:00:53]} Ng6 {[%emt 0:00:11]} 26. f4 {[%emt 0:00:38]} hxg4 {[%emt 0:00:14]} 27. hxg4 {[%emt 0:00:02]} f6 {[%emt 0:02:33]} 28. Bd3 {[%emt 0:00:36]} Nh4 {[%emt 0:00:43]} 0-1